[Event "46th OKU-B 2019"]
[Site "Utrecht"]
[Date "2019.05.31"]
[Round "1.1"]
[White "De Vroome, Ernest"]
[Black "Waardenburg, Marlinde"]
[Result "1/2-1/2"]
[ECO "B02"]
[WhiteElo "1893"]
[BlackElo "1706"]
[Annotator "NA RC"]
[PlyCount "65"]
[EventDate "2019.05.31"]
[EventType "swiss"]
[EventCountry "NED"]
[SourceTitle "playchess.com"]
[Source "ChessBase"]
[SourceQuality "1"]
[TimeControl "6600+10"]

{[%evp 22,61,-168,32767,32767,32767,32767,32767,32767,32767,-261,-281,-189,-188,-179,-242,-222,32767,32767,-194,-189,-170,-197,-184,-197,-207,-197,-194,-197,-202,-153,-188,32767,32767,-189,-240,-231,-267,-242,-238,-234,-241]} 1. e4 {[%emt 0:00:00]} Nf6 {[%emt 0:00:00]} 2. Nc3 {[%emt 0:00:11]} d5 {[%emt 0:00:03]} 3. e5 {[%emt 0:00:06]} Nfd7 {[%emt 0:00:08]} 4. e6 {[%emt 0:00:08]} fxe6 {[%emt 0:00:23]} 5. d4 {[%emt 0:00:12]} c5 {[%emt 0:01:11]} 6. Nf3 {[%emt 0:03:11]} Nc6 {[%emt 0:03:18]} 7. Bf4 {[%emt 0:06:33] B02: Alekhine's Defence: Chase Variation and lines with early Nc3} (7. dxc5 Nxc5 8. Be3 Qa5 9. Qd2 g6 10. Bb5 Nd7 11. Nd4 Nde5 12. Bf4 Nc4 13. Bxc4 dxc4 14. Nxc6 bxc6 15. Qd4 {1-0 (29) Salem,A (2660)-Predke,A (2622) St Petersburg 2018}) 7... a6 {[%emt 0:05:58]} 8. Ne5 $146 {[%emt 0:11:54]} ({Predecessor:} 8. Qd2 cxd4 9. Nxd4 Nxd4 10. Qxd4 Qb6 11. Be3 Qxd4 12. Bxd4 e5 13. Nxd5 exd4 14. Nc7+ Kd8 {1-0 (52) Krzesinski,P (1832)-Goldt,R (1993) Frankfurt 2011}) 8... Ndxe5 {[%emt 0:19:47]} 9. dxe5 {[%emt 0:00:44]} g6 {[%emt 0:01:03]} 10. Bg3 {[%emt 0:09:21]} Bg7 {[%emt 0:00:45]} 11. f4 {[%emt 0:01:34]} Qa5 {[%emt 0:04:02]} 12. Qd2 {[%emt 0:09:13]} Bh6 {[%emt 0:03:02]} 13. Nb1 {[%emt 0:05:34]} Qxd2+ {[%emt 0:03:38]} 14. Nxd2 {[%emt 0:00:26]} Rf8 {[%emt 0:01:43]} 15. Bf2 {[%emt 0:06:07]} Bxf4 {[%emt 0:03:20]} 16. Bxc5 {[%emt 0:00:26]} Bxe5 {[%emt 0:01:44]} 17. O-O-O {[%emt 0:01:23]} Bd7 {[%emt 0:09:49]} 18. Bb6 {[%emt 0:07:57]} (18. Nf3 {was called for.}) 18... Rc8 {[%emt 0:04:55]} 19. Nf3 {[%emt 0:05:18]} Bf6 {[%emt 0:04:33]} 20. Kb1 {[%emt 0:02:14]} Ne5 {[%emt 0:03:27]} 21. Nxe5 {[%emt 0:08:35]} Bxe5 {[%emt 0:00:08]} 22. Be2 {[%emt 0:03:30]} Rf4 {[%emt 0:04:41]} 23. a3 {[%emt 0:06:54]} Rc6 {[%emt 0:02:49]} 24. Bg1 {[%emt 0:01:30]} b5 {[%emt 0:08:35]} 25. c3 {[%emt 0:03:57]} Rc8 {[%emt 0:02:17]} 26. g3 {[%emt 0:07:54]} Rf8 {[%emt 0:03:16]} 27. Bd4 {[%emt 0:00:00]} Bf6 {[%emt 0:02:01]} 28. Rhe1 {[%emt 0:01:09]} (28. Be3 $142) 28... e5 {[%emt 0:03:09]} 29. Bg1 {[%emt 0:00:50]} e6 {[%emt 0:01:42]} 30. Bf1 $19 {[%emt 0:01:30]} Rb8 {[%emt 0:01:36]} 31. Bc5 {[%emt 0:00:12]} Be7 {[%emt 0:04:09]} 32. Bxe7 {[%emt 0:00:04]} Kxe7 {[%emt 0:00:05]} 33. Rxe5 {[%emt 0:00:06]} 1/2-1/2

[Event "46th OKU-B 2019"]
[Site "Utrecht"]
[Date "2019.05.31"]
[Round "1.2"]
[White "Loots, Ewoud"]
[Black "Aguado Garcia, Pablo"]
[Result "0-1"]
[ECO "C65"]
[WhiteElo "1725"]
[BlackElo "1890"]
[Annotator "NA RC"]
[PlyCount "48"]
[EventDate "2019.05.31"]
[EventType "swiss"]
[EventCountry "NED"]
[SourceTitle "playchess.com"]
[Source "ChessBase"]
[SourceQuality "1"]
[TimeControl "6600+10"]

1. e4 {[%emt 0:00:00]} e5 {[%emt 0:00:12]} 2. Nf3 {[%emt 0:00:00]} Nc6 {[%emt 0:00:14]} 3. Bb5 {[%emt 0:00:03]} Nf6 {[%emt 0:00:36]} 4. d3 {[%emt 0:00:14]} Bc5 {[%emt 0:00:23]} 5. c3 {[%emt 0:00:22]} d6 {[%emt 0:01:04]} 6. O-O {[%emt 0:00:49]} O-O {[%emt 0:01:20]} 7. Bg5 {[%emt 0:02:10]} Qe7 {[%emt 0:07:10] C65: Ruy Lopez: Berlin Defence (3...Nf6), unusual lines and 4 0-0 Bc5} (7... h6 8. Bh4 g5 9. Bg3 Bb6 10. Nbd2 g4 11. Nh4 Nh5 12. Nc4 Qg5 13. Qc1 Ne7 14. Nxb6 axb6 15. f3 {1-0 (54) Ivanchuk,V (2726)-Le,Q (2737) Huaian 2017}) 8. h3 {[%emt 0:05:39]} Nd8 {[%emt 0:01:32]} 9. d4 {[%emt 0:00:27]} Bb6 {[%emt 0:01:40]} 10. d5 {[%emt 0:07:10]} h6 {[%emt 0:01:01]} 11. Bxf6 {[%emt 0:07:08]} Qxf6 {[%emt 0:00:07]} 12. c4 $146 {[%emt 0:06:33]} ({Predecessor:} 12. Bd3 g6 13. Nbd2 a6 14. Nc4 Ba7 15. Ne3 {0-1 (44) Tuomala,T-Hintikka,E Helsinki 1989}) 12... Qg6 {[%emt 0:04:54]} 13. Nc3 {[%emt 0:03:51]} Bxh3 {[%emt 0:01:56]} 14. Ne1 {[%emt 0:01:32]} f5 {[%emt 0:04:31]} 15. Qd3 {[%emt 0:01:51]} Bg4 {[%emt 0:02:36]} 16. Ba4 {[%emt 0:00:23]} Nf7 {[%emt 0:08:20]} 17. Bc2 {[%emt 0:00:55]} f4 {[%emt 0:05:07]} 18. Bd1 {[%emt 0:04:32]} Bd7 {[%emt 0:03:09]} 19. Nf3 $1 $11 {[%emt 0:04:52] and White stays safe.} Qg3 {[%emt 0:14:33]} 20. Ne2 {[%emt 0:03:06]} Qg6 $2 {[%emt 0:01:39]} (20... Qg4 $19 21. Nc3 Qg6) 21. Rc1 $2 {[%emt 0:03:49]} a5 {[%emt 0:04:15]} 22. a3 $2 {[%emt 0:00:47]} (22. Nc3 {might work better.}) 22... a4 $19 {[%emt 0:02:35]} 23. Nc3 {[%emt 0:02:23]} Ng5 {[%emt 0:00:37]} 24. Nxg5 {[%emt 0:00:30]} hxg5 {[%emt 0:00:15]} 0-1

[Event "46th OKU-B 2019"]
[Site "Utrecht"]
[Date "2019.05.31"]
[Round "1.3"]
[White "Rookus, Sjoerd"]
[Black "Van Nie, Pjotr"]
[Result "0-1"]
[ECO "A00"]
[WhiteElo "1815"]
[BlackElo "1487"]
[Annotator "NA RC"]
[PlyCount "72"]
[EventDate "2019.05.31"]
[EventType "swiss"]
[EventCountry "NED"]
[SourceTitle "playchess.com"]
[Source "ChessBase"]
[SourceQuality "1"]
[TimeControl "6600+10"]

1. b4 {[%emt 0:00:00]} Nf6 {[%emt 0:00:15]} 2. Bb2 {[%emt 0:00:03]} d6 {[%emt 0:00:26]} 3. g3 {[%emt 0:02:03]} e5 {[%emt 0:00:20]} 4. Bg2 {[%emt 0:01:13]} g6 {[%emt 0:00:59]} 5. e3 {[%emt 0:07:03]} Bg7 {[%emt 0:00:17]} 6. Ne2 {[%emt 0:00:45]} c6 {[%emt 0:00:52]} 7. d4 {[%emt 0:02:52]} exd4 {[%emt 0:01:17]} 8. Bxd4 {[%emt 0:04:47]} c5 {[%emt 0:08:55]} 9. bxc5 {[%emt 0:02:53]} dxc5 {[%emt 0:00:23]} 10. Bxc5 {[%emt 0:00:17]} Qxd1+ {[%emt 0:03:41]} 11. Kxd1 {[%emt 0:00:24]} Ng4 {[%emt 0:00:14]} 12. e4 {[%emt 0:05:35]} Bxa1 {[%emt 0:00:35]} 13. c3 {[%emt 0:00:21]} Be6 {[%emt 0:02:09]} 14. h3 {[%emt 0:03:38]} Nd7 {[%emt 0:04:07]} 15. Bd4 {[%emt 0:06:33]} Ngf6 {[%emt 0:00:21]} 16. a3 {[%emt 0:02:24]} O-O {[%emt 0:03:26]} 17. Kc2 {[%emt 0:00:35]} Bc4 {[%emt 0:02:27]} 18. Nf4 {[%emt 0:04:26]} g5 {[%emt 0:02:11]} 19. Nd3 {[%emt 0:04:09]} Rac8 {[%emt 0:02:36]} 20. Nd2 {[%emt 0:02:25]} Bxd3+ {[%emt 0:00:15]} 21. Kxd3 {[%emt 0:00:18]} Bb2 {[%emt 0:01:05]} 22. Nb1 {[%emt 0:02:23]} Nc5+ {[%emt 0:02:39]} 23. Kc2 {[%emt 0:07:20] [#]} Bxc3 $1 {[%emt 0:01:29]} 24. Nxc3 {[%emt 0:00:49]} Ncxe4 {[%emt 0:00:23]} 25. Kb2 {[%emt 0:03:18]} Nxc3 {[%emt 0:01:09]} 26. Bxf6 {[%emt 0:03:38]} Na4+ {[%emt 0:00:28]} 27. Ka1 {[%emt 0:04:02]} Rc2 {[%emt 0:02:50]} 28. Bxb7 {[%emt 0:02:00]} Rxf2 {[%emt 0:04:13]} 29. Bd4 {[%emt 0:07:29]} Rd2 {[%emt 0:00:22]} 30. Be3 {[%emt 0:02:02]} Rd3 {[%emt 0:02:22] Double Attack} 31. Bc1 {[%emt 0:01:06]} Rxg3 {[%emt 0:01:00]} 32. Bc6 {[%emt 0:00:30]} Nc3 {[%emt 0:01:00]} 33. h4 {[%emt 0:02:42]} gxh4 {[%emt 0:03:10]} 34. Bf4 {[%emt 0:01:06]} Rg6 $19 {[%emt 0:00:30]} 35. Bd7 {[%emt 0:01:09]} Rg2 {[%emt 0:01:18]} 36. Rxh4 {[%emt 0:01:55]} Ra2# {[%emt 0:00:08]} 0-1

[Event "46th OKU-B 2019"]
[Site "Utrecht"]
[Date "2019.05.31"]
[Round "1.4"]
[White "Houpst, Christiaan"]
[Black "Flohr, Ron"]
[Result "0-1"]
[ECO "D02"]
[WhiteElo "1712"]
[BlackElo "1883"]
[Annotator "NA RC"]
[PlyCount "128"]
[EventDate "2019.05.31"]
[EventType "swiss"]
[EventCountry "NED"]
[SourceTitle "playchess.com"]
[Source "ChessBase"]
[SourceQuality "1"]
[TimeControl "6600+10"]

1. d4 {[%emt 0:00:00]} d5 {[%emt 0:00:04]} 2. Nf3 {[%emt 0:00:04]} Bg4 {[%emt 0:00:16]} 3. e3 {[%emt 0:01:03]} Nd7 {[%emt 0:01:09]} 4. Be2 {[%emt 0:00:07]} e6 {[%emt 0:00:18]} 5. Nbd2 {[%emt 0:01:37]} Ngf6 {[%emt 0:01:30]} 6. Ne5 {[%emt 0:01:31] D02: 1 d4 d5 2 Nf3 sidelines, including 2...Nf6 3 g3 and 2...Nf6 3 Bf4} (6. O-O Bd6 7. c4 c6 8. b3 O-O 9. Bb2 Qe7 10. Ne5 Bxe2 11. Qxe2 Ba3 12. Nxd7 Nxd7 13. Bc3 Bb4 14. Bxb4 Qxb4 15. a3 Qe7 16. e4 dxe4 17. Nxe4 Rfd8 {½-½ (17) Bruno,F (2437)-Godena,M (2548) Perugia 2011}) 6... Bf5 {[%emt 0:01:37]} 7. g4 $146 {[%emt 0:03:06]} ({Predecessor:} 7. f4 Nxe5 8. fxe5 Ne4 9. O-O h5 10. Nxe4 Bxe4 11. Bf3 Bf5 12. c3 g5 13. Be2 {0-1 (55) MacNevin,D (1456)-Xiong,W (1595) Ottawa 2009}) 7... Be4 {[%emt 0:04:51]} 8. f3 {[%emt 0:01:31]} Bg6 {[%emt 0:09:48]} 9. Nxg6 {[%emt 0:04:40]} hxg6 {[%emt 0:00:49]} 10. g5 {[%emt 0:05:11]} Ng8 {[%emt 0:03:17]} 11. f4 {[%emt 0:00:23]} Bd6 {[%emt 0:01:59]} 12. Nf3 {[%emt 0:00:08]} Ne7 {[%emt 0:00:41]} 13. Bd3 {[%emt 0:01:33]} c5 {[%emt 0:04:26]} 14. c3 {[%emt 0:00:48]} c4 {[%emt 0:03:47]} 15. Bc2 {[%emt 0:00:25]} Qc7 {[%emt 0:01:49]} 16. Ne5 {[%emt 0:01:12]} Bxe5 {[%emt 0:00:54]} 17. fxe5 {[%emt 0:00:58]} f5 {[%emt 0:02:55]} 18. Qf3 {[%emt 0:04:03]} O-O-O {[%emt 0:00:56]} 19. Bd2 {[%emt 0:02:13]} Rh4 {[%emt 0:02:55]} 20. O-O-O {[%emt 0:01:18]} Rdh8 {[%emt 0:00:41]} 21. h3 {[%emt 0:00:15]} b5 {[%emt 0:01:49]} 22. Rdg1 {[%emt 0:01:22]} a5 {[%emt 0:00:15]} 23. Be1 {[%emt 0:00:43]} R4h7 {[%emt 0:00:28]} 24. Rg2 {[%emt 0:03:18]} Nb6 {[%emt 0:00:56]} 25. Rgh2 {[%emt 0:00:14]} Nc6 {[%emt 0:00:36]} 26. h4 {[%emt 0:02:35]} Qe7 {[%emt 0:00:59]} 27. Qg2 {[%emt 0:02:59]} b4 {[%emt 0:00:39]} 28. Bd1 {[%emt 0:01:54]} bxc3 {[%emt 0:04:38]} 29. bxc3 {[%emt 0:02:37]} Kc7 {[%emt 0:00:34]} 30. h5 {[%emt 0:03:28]} gxh5 {[%emt 0:01:38]} 31. g6 {[%emt 0:04:11]} Rh6 {[%emt 0:00:15]} 32. Bh4 {[%emt 0:01:05]} Qa3+ {[%emt 0:00:25]} 33. Qb2 {[%emt 0:01:09]} Qxb2+ {[%emt 0:00:18]} 34. Kxb2 {[%emt 0:01:47]} Rxg6 {[%emt 0:02:42]} 35. a4 {[%emt 0:02:00]} Rgh6 {[%emt 0:01:38]} 36. Rg2 {[%emt 0:02:11]} Rg8 {[%emt 0:05:19]} 37. Rhg1 {[%emt 0:01:12]} g6 {[%emt 0:01:58]} 38. Bg5 {[%emt 0:01:57] [#]} Rh7 $1 {[%emt 0:00:23]} 39. Bf6 {[%emt 0:00:18]} h4 {[%emt 0:02:32]} 40. Ka3 {[%emt 0:02:12]} (40. Rh2 $17 {keeps fighting.}) 40... h3 {[%emt 0:02:38]} 41. Rh2 {[%emt 0:01:07]} Nd7 {[%emt 0:00:35]} 42. Bg5 {[%emt 0:00:25]} Rb8 {[%emt 0:01:00]} (42... Nd8 $19 {has better winning chances.} 43. Bxd8+ Kxd8) 43. Bc2 {[%emt 0:01:19]} (43. Rg3 $17 {was called for.}) 43... Rh5 {[%emt 0:04:49]} ({Black should play} 43... Nf8 $19 44. Rg3 Nd8) 44. Rg3 {[%emt 0:01:46]} Rbh8 {[%emt 0:01:17]} 45. Bd1 {[%emt 0:00:13]} R5h7 {[%emt 0:01:51]} 46. Bf6 {[%emt 0:02:26]} Rg8 {[%emt 0:05:56]} 47. Bg5 {[%emt 0:00:31]} Rgh8 $2 {[%emt 0:03:12]} (47... Nd8 $19 48. Rgxh3 Rxh3 49. Rxh3 Nf7) 48. Bf6 $1 {[%emt 0:00:07]} Nxf6 {[%emt 0:02:31]} 49. exf6 {[%emt 0:00:11]} Rh6 {[%emt 0:00:41]} 50. f7 {[%emt 0:01:04]} Rf8 {[%emt 0:01:01]} 51. Rgxh3 {[%emt 0:04:27]} Rxh3 {[%emt 0:00:30]} 52. Rxh3 {[%emt 0:00:05]} Rxf7 {[%emt 0:00:06]} 53. Rh6 {[%emt 0:01:32]} Ne7 {[%emt 0:00:38]} 54. Kb2 {[%emt 0:00:47]} Rg7 $19 {[%emt 0:00:54]} 55. Kc2 {[%emt 0:00:08]} Kd6 {[%emt 0:00:13]} 56. Kd2 {[%emt 0:00:07]} e5 {[%emt 0:00:33]} 57. dxe5+ {[%emt 0:01:24]} Kxe5 {[%emt 0:00:39]} 58. Be2 {[%emt 0:00:27]} Ng8 {[%emt 0:00:25]} 59. Rh1 {[%emt 0:00:48]} g5 {[%emt 0:00:09]} 60. Rb1 {[%emt 0:00:17]} Nf6 {[%emt 0:00:09]} 61. Rb5 {[%emt 0:00:12]} Ra7 {[%emt 0:00:21]} 62. Bxc4 {[%emt 0:00:12]} g4 {[%emt 0:00:36]} 63. Bf1 {[%emt 0:00:25]} Ne4+ {[%emt 0:00:10]} 64. Kd3 {[%emt 0:00:43]} Rc7 {[%emt 0:00:27] Kd4+ [%emt 00:01:22]} 0-1

[Event "46th OKU-B 2019"]
[Site "Utrecht"]
[Date "2019.05.31"]
[Round "1.5"]
[White "Van de Lagemaat, Arend"]
[Black "Eefting, Martijn"]
[Result "0-1"]
[WhiteElo "1855"]
[BlackElo "1683"]
[Annotator "NA"]
[PlyCount "20"]
[EventDate "2019.05.31"]
[EventType "swiss"]
[EventCountry "NED"]
[SourceTitle "playchess.com"]
[Source "ChessBase"]
[SourceQuality "1"]
[TimeControl "6600+10"]

1. e4 {[%emt 0:00:04]} c5 {[%emt 0:00:00]} 2. Nf3 {[%emt 0:00:16]} g6 {[%emt 0:00:01]} 3. d4 {[%emt 0:00:28]} cxd4 {[%emt 0:00:05]} 4. Nxd4 {[%emt 0:00:05]} Bg7 {[%emt 0:00:53]} 5. c4 {[%emt 0:00:06]} Nc6 {[%emt 0:00:17]} 6. Be3 {[%emt 0:01:10]} d6 {[%emt 0:02:17]} 7. Nc3 {[%emt 0:00:40]} Nxd4 {[%emt 0:00:38]} 8. Bxd4 {[%emt 0:00:03]} Nf6 {[%emt 0:00:11]} 9. Be2 {[%emt 0:00:36]} O-O {[%emt 0:00:15]} 10. O-O {[%emt 0:00:33]} a5 {[%emt 0:01:38]} 0-1

[Event "46th OKU-B 2019"]
[Site "Utrecht"]
[Date "2019.05.31"]
[Round "1.6"]
[White "Arnold, Kiri"]
[Black "Van Oosten, Jaap"]
[Result "0-1"]
[ECO "C42"]
[WhiteElo "1304"]
[BlackElo "1939"]
[Annotator "NA RC"]
[PlyCount "130"]
[EventDate "2019.05.31"]
[EventType "swiss"]
[EventCountry "NED"]
[SourceTitle "playchess.com"]
[Source "ChessBase"]
[SourceQuality "1"]
[TimeControl "6600+10"]

{[%evp 19,107,59,32767,32767,32767,32767,32767,32767,32767,32767,32767,32767,32767,32767,32767,32767,32767,32767,32767,47,121,32767,18,0,35,45,32767,32767,139,17,32767,32767,32767,13,32767,32767,79,0,0,0,0,0,0,0,0,32767,11,0,22,21,12,21,22,0,289,0,33,0,235,32767,6,0,0,32767,0,32767,0,0,0,0,0,0,32767,32767,0,0,0,-107,-100,-135,-178,-174,-179,-203,-227,-195,-103,-236,-214,-246]} 1. e4 {[%emt 0:00:00]} e5 {[%emt 0:17:49]} 2. d4 {[%emt 0:00:30]} exd4 {[%emt 0:00:08]} 3. c3 {[%emt 0:00:04]} d5 {[%emt 0:00:09]} 4. exd5 {[%emt 0:00:04]} Qxd5 {[%emt 0:00:10]} 5. cxd4 {[%emt 0:00:04]} Nf6 {[%emt 0:00:41]} 6. Nc3 {[%emt 0:03:16]} Qd8 {[%emt 0:01:27]} 7. Nf3 {[%emt 0:01:55]} Be7 {[%emt 0:00:44]} 8. Bc4 {[%emt 0:01:56]} O-O {[%emt 0:00:30]} 9. O-O {[%emt 0:00:25]} c6 {[%emt 0:00:43]} 10. Re1 {[%emt 0:05:20]} Nbd7 {[%emt 0:01:39]} 11. Bg5 {[%emt 0:07:45]} h6 {[%emt 0:03:12]} 12. Bh4 {[%emt 0:01:22]} Nb6 {[%emt 0:01:30]} 13. Bb3 {[%emt 0:01:45]} Nfd5 {[%emt 0:02:28]} 14. Bxe7 {[%emt 0:01:26]} Nxe7 {[%emt 0:00:02]} 15. Qd2 {[%emt 0:03:26]} Ned5 {[%emt 0:05:01]} 16. h3 {[%emt 0:05:25]} Be6 {[%emt 0:01:21]} 17. Rad1 {[%emt 0:02:07]} Qf6 {[%emt 0:05:01]} 18. Ne4 {[%emt 0:06:02]} Qf4 {[%emt 0:05:49]} 19. Nc5 {[%emt 0:13:27]} Qf6 {[%emt 0:05:57]} 20. Ne4 {[%emt 0:04:29]} Qf4 {[%emt 0:03:59]} 21. Nc5 {[%emt 0:03:44]} Qxd2 {[%emt 0:02:17]} 22. Rxd2 {[%emt 0:00:13]} Bc8 {[%emt 0:00:11]} 23. Rde2 {[%emt 0:02:48]} Nd7 {[%emt 0:01:25]} (23... Nf4 $11) 24. Re8 {[%emt 0:03:34]} (24. Bxd5 $16 cxd5 25. Re7) 24... Nxc5 {[%emt 0:00:50]} 25. dxc5 {[%emt 0:00:18]} Be6 {[%emt 0:00:24]} 26. Rxa8 {[%emt 0:02:28]} Rxa8 {[%emt 0:00:03]} 27. Nd4 {[%emt 0:03:20]} Re8 {[%emt 0:01:50]} (27... Rd8 $11) 28. Nf5 {[%emt 0:01:39]} ({White should play} 28. Bxd5 $16 cxd5 29. b4) 28... Kf8 {[%emt 0:00:34]} 29. Nd6 {[%emt 0:00:34]} Rb8 {[%emt 0:00:14]} 30. Kf1 {[%emt 0:02:12]} g6 {[%emt 0:00:54]} 31. h4 {[%emt 0:03:03]} h5 {[%emt 0:00:19]} 32. g3 {[%emt 0:00:35]} Ke7 {[%emt 0:00:24]} 33. Ne4 {[%emt 0:09:57]} (33. Bxd5 $5 cxd5 34. Nb5 $11) 33... Rd8 {[%emt 0:01:42]} 34. Ng5 {[%emt 0:02:33]} b6 {[%emt 0:02:52]} 35. cxb6 {[%emt 0:01:24]} axb6 {[%emt 0:00:02]} 36. Kg2 {[%emt 0:02:42]} Kd6 {[%emt 0:01:12] [#]} 37. Rd1 $2 {[%emt 0:00:34]} (37. Rxe6+ $1 $18 {[%mdl 512]} fxe6 38. Nf7+ {[%mdl 64] Double Attack} Ke7 39. Nxd8 Kxd8 40. Bc2) 37... Kc7 {[%emt 0:01:13]} 38. Re1 {[%emt 0:00:29]} Kd6 {[%emt 0:01:53]} 39. Rd1 {[%emt 0:00:41]} Ke7 {[%emt 0:00:27]} 40. Re1 {[%emt 0:01:00]} Nc7 {[%emt 0:03:26]} 41. Bxe6 {[%emt 0:01:11]} Nxe6 {[%emt 0:00:18]} 42. Nxe6 {[%emt 0:00:24]} fxe6 {[%emt 0:00:08]} 43. Re2 {[%emt 0:00:24]} Kf6 {[%emt 0:00:26]} 44. a3 {[%emt 0:00:56]} e5 {[%emt 0:00:22]} 45. Kf3 {[%emt 0:01:54]} Kf5 {[%emt 0:05:24]} 46. Kg2 {[%emt 0:01:06]} Rd3 {[%emt 0:02:40]} 47. Rc2 {[%emt 0:00:55]} c5 {[%emt 0:00:00]} 48. Re2 {[%emt 0:00:04]} (48. a4 $1 $11 {keeps the balance.}) 48... e4 {[%emt 0:01:34]} 49. Kg1 {[%emt 0:01:58]} Ke5 {[%emt 0:01:05]} 50. Kf1 {[%emt 0:00:21] [#]} Kd4 $1 {[%emt 0:01:07]} 51. Rc2 {[%emt 0:00:58]} b5 {[%emt 0:00:21]} 52. Ke2 {[%emt 0:00:38]} c4 {[%emt 0:00:45]} 53. Kf1 {[%emt 0:01:34]} (53. Rd2 $142) 53... e3 {[%emt 0:03:11]} 54. fxe3+ $19 {[%emt 0:00:41]} Kxe3 {[%emt 0:00:09]} 55. Re2+ {[%emt 0:00:26]} Kf3 {[%emt 0:00:02]} 56. Rf2+ {[%emt 0:00:33]} Kxg3 {[%emt 0:00:28]} 57. Rg2+ {[%emt 0:00:04]} Kxh4 {[%emt 0:00:36]} 58. Rxg6 {[%emt 0:00:07]} Rb3 {[%emt 0:00:05]} 59. Ke1 {[%emt 0:00:37]} Rxb2 {[%emt 0:00:14]} 60. Kd1 {[%emt 0:00:04]} Rb3 {[%emt 0:00:36]} 61. Ra6 {[%emt 0:00:18]} Kh3 {[%emt 0:00:24]} 62. Kc2 {[%emt 0:00:05]} h4 {[%emt 0:00:15]} 63. Ra5 {[%emt 0:00:11]} Kg2 {[%emt 0:00:30]} 64. Ra8 {[%emt 0:00:11]} h3 {[%emt 0:00:10]} 65. Rg8+ {[%emt 0:00:22]} Rg3 {[%emt 0:00:02]} 0-1

[Event "46th OKU-B 2019"]
[Site "Utrecht"]
[Date "2019.05.31"]
[Round "1.7"]
[White "Krouwel, Robert"]
[Black "Aldenberg, Hendrik"]
[Result "1/2-1/2"]
[ECO "A46"]
[WhiteElo "1841"]
[BlackElo "1697"]
[Annotator "NA RC"]
[PlyCount "76"]
[EventDate "2019.05.31"]
[EventType "swiss"]
[EventCountry "NED"]
[SourceTitle "playchess.com"]
[Source "ChessBase"]
[SourceQuality "1"]
[TimeControl "6600+10"]

1. d4 {[%emt 0:00:00]} Nf6 {[%emt 0:00:04]} 2. Nf3 {[%emt 0:00:00]} e6 {[%emt 0:01:17]} 3. e3 {[%emt 0:00:03]} c5 {[%emt 0:00:17]} 4. Bd3 {[%emt 0:00:10]} Qc7 {[%emt 0:01:31]} 5. c3 {[%emt 0:00:28]} b6 {[%emt 0:02:18]} 6. Nbd2 {[%emt 0:00:06]} g6 {[%emt 0:00:40]} 7. O-O {[%emt 0:01:34]} Bg7 {[%emt 0:02:15]} 8. e4 {[%emt 0:02:50]} O-O {[%emt 0:05:33]} 9. Re1 {[%emt 0:00:14]} Ba6 {[%emt 0:04:54]} 10. Bxa6 {[%emt 0:00:26]} Nxa6 {[%emt 0:00:06]} 11. Nf1 {[%emt 0:04:04]} cxd4 {[%emt 0:07:09]} 12. cxd4 {[%emt 0:01:08]} Nb4 {[%emt 0:00:48]} 13. Bg5 {[%emt 0:01:27]} Qc2 {[%emt 0:18:55]} 14. a3 {[%emt 0:01:46]} Qxd1 {[%emt 0:16:27]} 15. Raxd1 $11 {[%emt 0:00:41]} (15. Rc1 $2 {[%emt 0:00:40][%mdl 8192]}) 15... Nc6 {[%emt 0:04:35]} 16. Ng3 $19 {[%emt 0:04:49]} (16. e5) 16... d5 {[%emt 0:02:02]} 17. Bxf6 {[%emt 0:01:54]} Bxf6 {[%emt 0:00:08]} 18. e5 {[%emt 0:00:05]} Be7 {[%emt 0:00:37]} 19. Ne2 {[%emt 0:00:41]} Rac8 {[%emt 0:00:24]} 20. Rc1 {[%emt 0:00:29]} Na5 {[%emt 0:00:07]} 21. Nd2 {[%emt 0:00:19]} Nc4 {[%emt 0:05:22]} 22. Nxc4 {[%emt 0:00:11]} Rxc4 {[%emt 0:00:45]} 23. Rxc4 {[%emt 0:00:07]} dxc4 {[%emt 0:00:04]} 24. Nc3 {[%emt 0:00:21]} Rd8 {[%emt 0:01:08]} 25. Rd1 {[%emt 0:00:07]} a6 {[%emt 0:04:15]} 26. f4 {[%emt 0:03:32]} f5 {[%emt 0:01:33]} 27. Kf2 {[%emt 0:00:17]} Kf7 {[%emt 0:00:11]} 28. Ke3 {[%emt 0:00:16]} b5 {[%emt 0:00:13]} 29. d5 {[%emt 0:01:51]} Bc5+ {[%emt 0:01:33]} 30. Ke2 {[%emt 0:01:13]} exd5 {[%emt 0:02:20]} 31. Nxd5 {[%emt 0:00:29]} a5 {[%emt 0:02:36]} 32. e6+ {[%emt 0:03:36]} Ke8 {[%emt 0:06:01]} 33. Nc7+ {[%emt 0:00:31]} Ke7 {[%emt 0:00:29]} 34. Rxd8 {[%emt 0:00:12]} Kxd8 {[%emt 0:00:11]} 35. Nxb5 {[%emt 0:00:15]} Ke7 {[%emt 0:01:11]} 36. h3 {[%emt 0:00:38]} Kxe6 {[%emt 0:01:27]} 37. g4 {[%emt 0:00:06]} Kd5 {[%emt 0:02:00]} 38. Kf3 {[%emt 0:00:20]} Bb6 {[%emt 0:04:07]} 1/2-1/2